{"text_format":"1","workbook":"xlsx","n_sheets":2,"sheets":["Pasiūlymas","Subtiekėjai ir priedai"],"not_rendered":{"charts":0,"images":0,"macros":1,"external_links":0,"defined_names":0,"comments":0,"pivot_tables":0},"unopened":[],"bounds":{"document_bytes":16777216,"sheet_cells":100000,"rows_first":2000,"rows_last":500,"rows_between":2000,"halvings":0,"cell_chars":16384,"cell_head_chars":4096},"cells_cut":0,"cells_raw":0,"read":"whole","date_system":"1900"}

{"sheet":"Pasiūlymas","index":0,"n_rows":148,"n_cols":8,"rows_kept":148,"cut":false,"hidden":false,"merged":[[11,0,11,1],[11,2,11,5],[12,0,12,1],[12,2,12,5],[13,0,13,1],[13,2,13,5],[14,0,14,1],[14,2,14,5],[15,0,15,1],[15,2,15,5],[16,0,16,1],[16,2,16,5],[17,0,17,1],[17,2,17,5],[18,0,18,1],[18,2,18,5],[19,0,19,1],[19,2,19,5],[20,0,20,1],[20,2,20,5],[22,0,22,5],[23,0,23,5],[24,0,24,5],[25,0,25,5],[26,0,26,5],[27,0,27,5],[28,0,28,5],[29,0,29,2],[29,3,29,5]]}
[]
["PIKIMO SĄLYGŲ PRIEDAS \"PASIŪLYMO FORMA\""]
[]
["DEZINFEKCINĖS MEDŽIAGOS IR PRIEMONĖS"]
[]
["Kam:","LSMU Kauno ligoninė"]
[]
["Data:","2022-01-28"]
["Nr.:",579206]
["Vieta:","Kaunas"]
[]
["Tiekėjo pavadinimas / Ūkio subjektų grupės nariai:",null,"L.R.Tamulio firma „Meditalika“"]
["Tiekėjo kodas (-ai):",null,134565744]
["Tiekėjo adresas (-ai):",null,"Radvilų Dvaro g.4, LT-48320 Kaunas"]
["Tiekėjo PVM mokėtojo kodas(-ai):",null,"LT345657415"]
["Tiekėjo / Ūkio subjektų grupės atsakingo partnerio sąskaitos numeris, banko pavadinimas ir banko kodas (-ai):",null,"LT09 7044 0600 0290 5474, AB SEB Bankas, banko kodas 70440"]
["Asmens atsakingo už pasiūlymą vardas, pavardė:",null,"Rita Rutkevičienė"]
["Asmens atsakingo už pasiūlymą telefono numeris, el. pašto adresas:",null,"(8 610) 17000, rita@meditalika.lt"]
["Tiekėjo / Ūkio subjektų grupės, laimėjimo atveju, pasirašančio sutartį asmens vardas, pavardė, pareigos:",null,"Komercijos direktorė Rita Rutkevičienė"]
["Tiekėjo / Ūkio subjektų grupės, laimėjimo atveju, už sutarties vykdymą atsakingo asmens vardas, pavardė, telefono numeris, elektroninio pašto adresas:",null,"Rasa Andronavičienė; (8 37) 22 22 23, info@meditalika.lt"]
["(1) Tiekėjo / Ūkio subjektų grupės narių, (2) ūkio subjektų, kurių pajėgumais remiamasi, ir (3) jei pašalinimo pagrindai taikomi visiems subtiekėjams - subtiekėjų, kolegialaus priežiūros organo (Stebėtojų tarybos) ir (ar) kolegialaus valdymo organo (Valdybos) narių sąrašas (jei sudaryta) ir (ar) asmuo, kuriam suteikti VPĮ 46 str. 2 d. 2 p. numatyti įgaliojimai",null,"-",null,null,null,{"$f":"IF((SUMPRODUCT(--(C21=\"\"))>0), \"Privaloma užpildyti, kai taikomi pašalinimo pagrindai\", \"\")","v":""}]
[]
["Tiekėjo patvirtinimai:"]
["1. Šiuo pasiūlymu pažymime, kad sutinkame su visomi pirkimo sąlygomis, nustatytomis:"]
["1.1. viešojo pirkimo dokumentuose"]
["1.2. kituose pirkimo dokumentuose (jų paaiškinimuose, papildymuose)."]
["2. Patvirtiname, kad informacija ir duomenys, pateikti pasiūlyme, yra teisingi ir apima viską, ko reikia tinkamam sutarties įvykdymui"]
["3. Patvirtiname, kad jei pasiūlyme nenurodyti kolegialaus priežiūros/valdymo organų nariai, šie organai juridiniuose asmenyse nėra sudaryti (taikoma, kai pirkimo dokumentuose nustatyti pašalinimo pagrindai)."]
["4. Pasiūlymas galioja iki termino, nustatyto pirkimo dokumentuose."]
["5. Tais atvejais, kai pagal galiojančius teisės aktus tiekėjui nereikia mokėti PVM, jis nurodo priežastis, dėl kurių PVM nemoka:"]
[]
["1. DALIS","PRIEMONĖ PAVIRŠIŲ VALYMUI IR DEZINFEKCIJAI SU CHLORO JUNGINIAIS"]
[]
["Tiekėjo pasiūlymas:"]
["Nr.","Pavadinimas","Kiekis","Mato vienetas","Įkainis be PVM, Eur","Suma be PVM, Eur","Siūlomos prekės, pavadinimas, gamintojas","Tiekėjo siūlomi parametrai ir parametrą pagrindžiančio dokumento puslapis"]
["1.","Priemonė paviršių valymui ir dezinfekcijai su chloro junginiais"]
["1.1.","Priemonė paviršių valymui ir dezinfekcijai su chloro junginiais",500000,"vnt.",4.4999999999999998E-2,{"$f":"IF(ISBLANK(E37),\"\", PRODUCT(C37,E37))","v":22500},"Chlor-Clean dez. priemonė (200 tab.), Guest Medical Ltd., Didžioji Britanija"]
["1.1.1.","Veiklioji medžiaga – chloro junginiai.",null,null,null,null,null,"Veiklioji medžiaga – chloro junginiai."]
["1.1.2.","Veikia bakterijas, grybelius, virusus, sporas.",null,null,null,null,null,"Veikia bakterijas, grybelius, virusus, sporas."]
["1.1.3.","Tinka sveikatos priežiūros įstaigoje įvairių paviršių valymui ir dezinfekcijai bei maisto bloke.",null,null,null,null,null,"Tinka sveikatos priežiūros įstaigoje įvairių paviršių valymui ir dezinfekcijai bei maisto bloke."]
["1.1.4.","Nereikia nuskalauti (išskyrus paviršius, kurie liesis su maistu).",null,null,null,null,null,"Nereikia nuskalauti (išskyrus paviršius, kurie liesis su maistu)."]
["1.1.5.","Forma - tabletės.",null,null,null,null,null,"Forma - tabletės."]
["1.1.6.","Vienoje tabletėje nuo 1 iki 5 gramų aktyvaus chloro.",null,null,null,null,null,"Vienoje tabletėje1 gramas aktyvaus chloro."]
["1.1.7.","Ekspozicija iki 15 min.",null,null,null,null,null,"Ekspozicija iki 15 min."]
["1.1.8.","2 ir 4 tipo biocidas.",null,null,null,null,null,"2 ir 4 tipo biocidas."]
["1.1.9.","Prireikus pateikti lipnias laminuotas etiketes darbinio tirpalo gaminimui ir ženklinimui.",null,null,null,null,null,"Prireikus pateiksime lipnias laminuotas etiketes darbinio tirpalo gaminimui ir ženklinimui."]
["1.1.10.","Pateikti lietuvių kalba: priemonės aprašymą ir/ar naudojimo instrukciją, priemonės biocido autorizacijos liudijimą, saugos duomenų lapus.",null,null,null,null,null,"Psl. Nr. 7-16"]
[null,null,null,null,"Suma be PVM",{"$f":"IF((COUNT(C37:C47)<>COUNT(F37:F47)),\"\", SUM(F37:F47))","v":22500},{"$f":"IF((COUNT(C37:C47)<>COUNT(F37:F47)),\"Neužpildytos visų objektų kainos\", \"\")","v":""}]
[null,null,null,null,"PVM suma",4725]
[null,null,null,null,"Suma su PVM",{"$f":"IF(ISBLANK(F49), \"\", SUM(F48:F49))","v":27225},"Dalies biudžetas su PVM: 60500 Eur"]
[]
[]
[]
["14. DALIS","PRIEMONĖS ENDOSKOPŲ VALYMUI IR DEZINFEKCIJAI RANKINIU BŪDU"]
[]
["Tiekėjo pasiūlymas:"]
["Nr.","Pavadinimas","Kiekis","Mato vienetas","Įkainis be PVM, Eur","Suma be PVM, Eur","Siūlomos prekės, pavadinimas, gamintojas","Tiekėjo siūlomi parametrai ir parametrą pagrindžiančio dokumento puslapis"]
["14.","Priemonės endoskopų valymui ir dezinfekcijai rankiniu būdu"]
["14.1.","Priemonė lanksčių endoskopų aukšto lygio dezinfekcijai",400,"kg",12,{"$f":"IF(ISBLANK(E59),\"\", PRODUCT(C59,E59))","v":4800},"Innosept POWDER 1,5kg., Prisman GmbH, Vokietija"]
["14.1.1.","Veiklioji medžiaga: perkarbonatas.",null,null,null,null,null,"Veiklioji medžiaga: perkarbonatas."]
["14.1.2.","Veikia bakterijas, mikobakterijas, virusus, sporas.",null,null,null,null,null,"Veikia bakterijas, mikobakterijas, virusus, sporas."]
["14.1.3.","Koncentracija iki 2 %, ekspozicija iki 15 min.",null,null,null,null,null,"Koncentracija iki 2 %, ekspozicija iki 15 min."]
["14.1.4.","Forma – milteliai/granulės.",null,null,null,null,null,"Forma – milteliai/granulės."]
["14.1.5.","Pakuotė iki 6 kg, komplekte su dozavimo šaukšteliu.",null,null,null,null,null,"Pakuotė iki 1,5 kg, komplekte su dozavimo šaukšteliu."]
["14.1.6.","Tinka lanksčių endoskopų “Olympus”, “Pentax”, “Karl Storz” dezinfekavimui.",null,null,null,null,null,"Tinka lanksčių endoskopų “Olympus”, “Pentax”, “Karl Storz” dezinfekavimui."]
["14.1.7.","Pateikti  lietuvių kalba: priemonės aprašymą ir/ar naudojimo instrukciją, saugos duomenų lapus, CE sertifikato arba EB atitikties deklaracijos kopiją, kad priemonė yra ženklinta CE pagal medicinos prietaisų (priemonių) saugos techninį reglamentą.",null,null,null,null,null,"Psl. Nr. 102-109; 115-121"]
["14.2.","Valomasis koncentratas",850,"L",9,{"$f":"IF(ISBLANK(E67),\"\", PRODUCT(C67,E67))","v":7650},"Instru Zym (2 ltr), Laboratorium Dr.Deppe, Vokietija"]
["14.2.1.","Medicinos instrumentų ir endoskopų plovimo priemonė enzimų pagrindu.",null,null,null,null,null,"Medicinos instrumentų ir endoskopų plovimo priemonė enzimų pagrindu."]
["14.2.2.","Koncentracija iki 3%, ekspozicijos laikas iki 15 min.",null,null,null,null,null,"Koncentracija iki 3%, ekspozicijos laikas iki 15 min."]
["14.2.3.","Suderinama su aukšto lygio dezinfekantu perkarbonato pagrindu.",null,null,null,null,null,"Suderinama su aukšto lygio dezinfekantu perkarbonato pagrindu."]
["14.2.4.","Darbinio tirpalo pH neutralus.",null,null,null,null,null,"Darbinio tirpalo pH neutralus."]
["14.2.5.","Pakuotė iki 2 litrų.",null,null,null,null,null,"Pakuotė 2litrai"]
["14.2.6.","Pateikti  lietuvių kalba: priemonės aprašymą ir/ar naudojimo instrukciją, saugos duomenų lapus, CE sertifikato arba EB atitikties deklaracijos kopiją, kad priemonė yra ženklinta CE pagal medicinos prietaisų (priemonių) saugos techninį reglamentą.",null,null,null,null,null,"Psl. Nr. 17-18; 25-26; 95-101"]
["14.3.","Testinės juostelės",850,"vnt.",1,{"$f":"IF(ISBLANK(E74),\"\", PRODUCT(C74,E74))","v":850},"Quantofix Peroxide indikatorius, 1 vnt, Prisman GmbH, Vokietija"]
["14.3.1.","Skirtos aukšto lygio dezinfekanto tirpalo veiksmingumui nustatyti.",null,null,null,null,null,"Skirtos aukšto lygio dezinfekanto tirpalo veiksmingumui nustatyti."]
["14.3.2.","Pateikti kaip priedą prie perkamų priemonių.",null,null,null,null,null,"Pateiksime kaip priedą prie perkamų priemonių."]
["14.3.3.","Pateikti  lietuvių kalba: priemonės aprašymą ir/ar naudojimo instrukciją.",null,null,null,null,null,"Psl. Nr. 122"]
[null,null,null,null,"Suma be PVM",{"$f":"IF((COUNT(C59:C77)<>COUNT(F59:F77)),\"\", SUM(F59:F77))","v":13300},{"$f":"IF((COUNT(C59:C77)<>COUNT(F59:F77)),\"Neužpildytos visų objektų kainos\", \"\")","v":""}]
[null,null,null,null,"PVM suma",801]
[null,null,null,null,"Suma su PVM",{"$f":"IF(ISBLANK(F79), \"\", SUM(F78:F79))","v":14101},"Dalies biudžetas su PVM: 32549 Eur"]
[]
[]
["21. DALIS","RINKINYS APLINKOS PAVIRŠIŲ VALYMO KOKYBĖS KONTROLEI"]
[]
["Tiekėjo pasiūlymas:"]
["Nr.","Pavadinimas","Kiekis","Mato vienetas","Įkainis be PVM, Eur","Suma be PVM, Eur","Siūlomos prekės, pavadinimas, gamintojas","Tiekėjo siūlomi parametrai ir parametrą pagrindžiančio dokumento puslapis"]
["21.","Rinkinys aplinkos paviršių valymo kokybės kontrolei"]
["21.1.","Rinkinys aplinkos paviršių valymo kokybės kontrolei",7,"vnt.",65,{"$f":"IF(ISBLANK(E88),\"\", PRODUCT(C88,E88))","v":455},"Higienos patikros rinkinys, 1 vnt., L.R.Tamulio firma „Meditalika“"]
["21.1.1.","Rinkinį sudaro: spaudas su žodžiu „Kontrolė“ ar kitu lygiaverčiu žodžiu, liuminisencinio rašalo indelis ne mažiau 20 ml., UV šviesos prožektorius, prožektoriaus veikimui reikalingi elementai.",null,null,null,null,null,"Rinkinį sudaro: spaudas su žodžiu „Kontrolė“, liuminisencinio rašalo indelis 50 ml., UV šviesos prožektorius, prožektoriaus veikimui reikalingi elementai."]
["21.1.2.","Spaudas gali būti dedamas ant visų valymui, drėgmei atsparių paviršių.",null,null,null,null,null,"Spaudas gali būti dedamas ant visų valymui, drėgmei atsparių paviršių. Psl. Nr. 169"]
[null,null,null,null,"Suma be PVM",{"$f":"IF((COUNT(C88:C90)<>COUNT(F88:F90)),\"\", SUM(F88:F90))","v":455},{"$f":"IF((COUNT(C88:C90)<>COUNT(F88:F90)),\"Neužpildytos visų objektų kainos\", \"\")","v":""}]
[null,null,null,null,"PVM suma",95.55]
[null,null,null,null,"Suma su PVM",{"$f":"IF(ISBLANK(F92), \"\", SUM(F91:F92))","v":550.54999999999995},"Dalies biudžetas su PVM: 550,55 Eur"]
[]
[]
[]
["22. DALIS","RINKINYS RANKŲ APRUOŠIMO KOKYBĖS KONTROLEI"]
[]
["Tiekėjo pasiūlymas:"]
["Nr.","Pavadinimas","Kiekis","Mato vienetas","Įkainis be PVM, Eur","Suma be PVM, Eur","Siūlomos prekės, pavadinimas, gamintojas","Tiekėjo siūlomi parametrai ir parametrą pagrindžiančio dokumento puslapis"]
["22.","Rinkinys rankų apruošimo kokybės kontrolei"]
["22.1.","Rinkinys rankų apruošimo kokybės kontrolei",7,"vnt.",65,{"$f":"IF(ISBLANK(E102),\"\", PRODUCT(C102,E102))","v":455},"Higienos patikros rinkinys, 1 vnt., L.R.Tamulio firma „Meditalika“, Psl. Nr. 170"]
["22.1.1.","Rinkinį sudaro: UV šviesos prožektorius, rankų antiseptikas ne mažiau 50 ml talpos, prožektoriaus veikimui reikalingi elementai ir (jeigu yra) kitos kontrolei atlikti būtinos priemonės.",null,null,null,null,null,"Rinkinį sudaro: UV šviesos prožektorius, rankų antiseptikas ne mažiau 50 ml talpos, prožektoriaus veikimui reikalingi elementai ir (jeigu yra) kitos kontrolei atlikti būtinos priemonės."]
[null,null,null,null,"Suma be PVM",{"$f":"IF((COUNT(C102:C103)<>COUNT(F102:F103)),\"\", SUM(F102:F103))","v":455},{"$f":"IF((COUNT(C102:C103)<>COUNT(F102:F103)),\"Neužpildytos visų objektų kainos\", \"\")","v":""}]
[null,null,null,null,"PVM suma",95.55]
[null,null,null,null,"Suma su PVM",{"$f":"IF(ISBLANK(F105), \"\", SUM(F104:F105))","v":550.54999999999995},"Dalies biudžetas su PVM: 550,55 Eur"]
[]
[]
[]
[]
["28. DALIS","KREPUOTAS POPIERIUS SUNKIŲ STERILIZUOJAMŲ MEDICININIŲ GAMINIŲ PAKAVIMUI"]
[]
["Tiekėjo pasiūlymas:"]
["Nr.","Pavadinimas","Kiekis","Mato vienetas","Įkainis be PVM, Eur","Suma be PVM, Eur","Siūlomos prekės, pavadinimas, gamintojas","Tiekėjo siūlomi parametrai ir parametrą pagrindžiančio dokumento puslapis"]
["28.","Krepuotas popierius sunkių sterilizuojamų medicininių gaminių pakavimui"]
["28.1.","100 cm x 100 cm ( ± 1 cm)",25000,"vnt.",0.85,{"$f":"IF(ISBLANK(E116),\"\", PRODUCT(C116,E116))","v":21250},"Med. krepinis (sunkiems paketams 60g/67g) 100x100 cm, vnt, Vereinighte Papierwarenfabriken GmbH, Vokietija"]
["28.1.1.","Pakavimo medžiaga ypač sunkiems paketams (pvz. ortopediniams rinkiniams)  pakuoti.",null,null,null,null,null,"Pakavimo medžiaga ypač sunkiems paketams (pvz. ortopediniams rinkiniams)  pakuoti."]
["28.1.2.","Sukarpyta lakštais.",null,null,null,null,null,"Sukarpyta lakštais."]
["28.1.3.","Komplektuojama vienoje pakuotėje po 2 skirtingų spalvų lapus.",null,null,null,null,null,"Komplektuojama vienoje pakuotėje po 2 skirtingų spalvų lapus."]
["28.1.4.","Sudėtis: vidinis lapas – neaustinis pluoštas iš celiuliozės, pastiprintomis sintetikos skaidulomis (svoris ne mažiau  67g/m²), išorinis lapas – sintetinis pluoštas (SMS) (svoris ne mažiau 50g/m²).",null,null,null,null,null,"Sudėtis: vidinis lapas – neaustinis pluoštas iš celiuliozės, pastiprintomis sintetikos skaidulomis (svoris   67g/m²), išorinis lapas – sintetinis pluoštas (SMS) (svoris 60g/m²)."]
["28.1.5.","Atitinka standartų EN 868-2, ISO 11607-1 ir medicinos prietaisų (priemonių) saugos techninio reglamento reikalavimus.",null,null,null,null,null,"Atitinka standartų EN 868-2, ISO 11607-1 ir medicinos prietaisų (priemonių) saugos techninio reglamento reikalavimus."]
["28.1.6.","Spalva – vidinio ir išorinio lapo spalva turi skirtis.",null,null,null,null,null,"Spalva – vidinio ir išorinio lapo spalva skiriasi. Psl.Nr. 215-217"]
["28.2.","120 cm x 120 cm ( ± 1 cm)",25000,"vnt.",1.2,{"$f":"IF(ISBLANK(E123),\"\", PRODUCT(C123,E123))","v":30000},"Med. krepinis (sunkiems paketams 60g/67g) 120x120 cm, vnt, Vereinighte Papierwarenfabriken GmbH, Vokietija"]
["28.2.1.","Pakavimo medžiaga ypač sunkiems paketams (pvz. ortopediniams rinkiniams)  pakuoti.",null,null,null,null,null,"Pakavimo medžiaga ypač sunkiems paketams (pvz. ortopediniams rinkiniams)  pakuoti."]
["28.2.2.","Sukarpyta lakštais.",null,null,null,null,null,"Sukarpyta lakštais."]
["28.2.3.","Komplektuojama vienoje pakuotėje po 2 skirtingų spalvų lapus.",null,null,null,null,null,"Komplektuojama vienoje pakuotėje po 2 skirtingų spalvų lapus."]
["28.2.4.","Sudėtis: vidinis lapas – neaustinis pluoštas iš celiuliozės, pastiprintomis sintetikos skaidulomis (svoris ne mažiau  67g/m²), išorinis lapas – sintetinis pluoštas (SMS) (svoris ne mažiau 50g/m²).",null,null,null,null,null,"Sudėtis: vidinis lapas – neaustinis pluoštas iš celiuliozės, pastiprintomis sintetikos skaidulomis (svoris   67g/m²), išorinis lapas – sintetinis pluoštas (SMS) (svoris 60g/m²)."]
["28.2.5.","Atitinka standartų EN 868-2, ISO 11607-1 ir medicinos prietaisų (priemonių) saugos techninio reglamento reikalavimus.",null,null,null,null,null,"Atitinka standartų EN 868-2, ISO 11607-1 ir medicinos prietaisų (priemonių) saugos techninio reglamento reikalavimus."]
["28.2.6.","Spalva – vidinio ir išorinio lapo spalva turi skirtis.",null,null,null,null,null,"Spalva – vidinio ir išorinio lapo spalva skiriasi. Psl.Nr. 215-217"]
[null,null,null,null,"Suma be PVM",{"$f":"IF((COUNT(C116:C129)<>COUNT(F116:F129)),\"\", SUM(F116:F129))","v":51250},{"$f":"IF((COUNT(C116:C129)<>COUNT(F116:F129)),\"Neužpildytos visų objektų kainos\", \"\")","v":""}]
[null,null,null,null,"PVM suma",2562.5]
[null,null,null,null,"Suma su PVM",{"$f":"IF(ISBLANK(F131), \"\", SUM(F130:F131))","v":53812.5},"Dalies biudžetas su PVM: 84700 Eur"]
[]
[]
["39. DALIS","APSAUGINIAI DANGALAI KLAVIATŪROMS"]
[]
["Tiekėjo pasiūlymas:"]
["Nr.","Pavadinimas","Kiekis","Mato vienetas","Įkainis be PVM, Eur","Suma be PVM, Eur","Siūlomos prekės, pavadinimas, gamintojas","Tiekėjo siūlomi parametrai ir parametrą pagrindžiančio dokumento puslapis"]
["39.","Apsauginiai dangalai klaviatūroms"]
["39.1.","Apsauginiai dangalai klaviatūroms",300,"vnt.",7,{"$f":"IF(ISBLANK(E140),\"\", PRODUCT(C140,E140))","v":2100},"Apsauginis dangalas klaviatūroms, vnt, Baake GmbH, Vokietija"]
["39.1.1.","Skirti klaviatūroms apsaugoti ir dengti: pagaminti iš skaidraus plastiko, kraštai turi būti sutvirtinti tampria guma.",null,null,null,null,null,"Skirti klaviatūroms apsaugoti ir dengti: pagaminti iš skaidraus plastiko, kraštai  i sutvirtinti tampria guma."]
["39.1.2.","Tinkami drėgnam valymui ir dezinfekcijai.",null,null,null,null,null,"Tinkami drėgnam valymui ir dezinfekcijai."]
["39.1.3.","Atsparūs trinčiai, su galimybe naudoti iki 3 mėnesių.",null,null,null,null,null,"Atsparūs trinčiai, su galimybe naudoti iki 3 mėnesių."]
["39.1.4.","Turi būti ženklinti CE ženklu (pagal medicinos priemonių (prietaisų) saugos technikos reglamentą).",null,null,null,null,null," Ženklinti CE ženklu"]
["39.1.5.","Supakuoti po 1 vnt.",null,null,null,null,null,"Supakuoti po 1 vnt. Psl.Nr. 252-253"]
[null,null,null,null,"Suma be PVM",{"$f":"IF((COUNT(C140:C145)<>COUNT(F140:F145)),\"\", SUM(F140:F145))","v":2100},{"$f":"IF((COUNT(C140:C145)<>COUNT(F140:F145)),\"Neužpildytos visų objektų kainos\", \"\")","v":""}]
[null,null,null,null,"PVM suma",441]
[null,null,null,null,"Suma su PVM",{"$f":"IF(ISBLANK(F147), \"\", SUM(F146:F147))","v":2541},"Dalies biudžetas su PVM: 3993 Eur"]

{"sheet":"Subtiekėjai ir priedai","index":1,"n_rows":81,"n_cols":11,"rows_kept":81,"cut":false,"hidden":false,"merged":[[1,0,2,10],[4,0,4,1],[4,2,4,4],[4,5,4,7],[4,8,4,9],[5,0,5,1],[5,2,5,4],[5,5,5,7],[5,8,5,9],[6,0,6,1],[6,2,6,4],[6,5,6,7],[6,8,6,9],[8,0,8,10],[10,0,10,1],[10,2,10,4],[10,5,10,7],[10,8,10,9],[11,0,11,1],[11,2,11,4],[11,5,11,7],[11,8,11,9],[12,0,12,1],[12,2,12,4],[12,5,12,7],[12,8,12,9],[14,0,14,9],[16,0,16,9],[18,1,18,6],[18,7,18,9],[19,1,19,6],[19,7,19,9],[20,1,20,6],[20,7,20,9],[21,1,21,6],[21,7,21,9],[22,1,22,6],[22,7,22,9],[23,1,23,6],[23,7,23,9],[24,1,24,6],[24,7,24,9],[25,1,25,6],[25,7,25,9],[33,0,33,3],[33,4,33,9],[26,1,26,6],[26,7,26,9],[28,0,28,9],[31,0,31,3],[31,4,31,9]]}
[]
["Ūkio subjektai (įskaitant kvazisubtiekėjus - fiziniai asmenys, kuriuos ketinama įdarbinti pirkimo laimėjimo atveju), kurių pajėgumais tiekėjas remiasi, kad atitiktų keliamus kvalifikacijos reikalavimus:"]
[]
[]
["Pavadinimas*",null,"Kodas, adresas",null,null,"Perduodami įsipareigojimai",null,null,"Perduodamų įsipareigojimų dalis nuo visos pirkimo sutarties (Eur arba %)",null,"Kval. Reikalavimo Nr."]
[]
[]
[]
["Subtiekėjams / subteikėjams / subrangovams numatomos perduoti veiklos (privaloma nurodyti) ir šių ūkio subjektų pavadinimai (jei žinomi):"]
[]
["Pavadinimas",null,"Kodas, adresas",null,null,"Perduodama veikla*",null,null,"Perduodamos veiklos dalis nuo visos pirkimo sutarties (Eur arba %)"]
[]
[]
[]
[]
[]
["Kartu su pasiūlymu pateikiami šie dokumentai:"]
[]
["Nr.","Dokumento  pavadinimas",null,null,null,null,null,"Dokumentas yra konfidencialus? Taip/Ne"]
["1","Jungtinės veiklos kopija (jei taikoma)"]
["2","Europos bendrasis viešųjų pirkimų dokumentas"]
["3","Subtiekimo sutartis, ketinimų protokolas, preliminarios sutartys ar kiti dokumentai, patvirtinantys, kad laimėjus pirkimą tiekėjui bus prieinami kitų ūkio subjektų ištekliai (jei pasitelkiami kvalifikacijos atitikimui)"]
["4","Pasiūlymo atitikimą pirkimo sąlygų techninei specifikacijai pagrindžiantys dokumentai"]
[]
[]
[]
[]
[]
["Pasiūlyme nurodyta Prekės kaina, išskyrus jos sudedamąsias dalis, subtiekėjai, taip pat kita informacija, kuri teisės aktų nustatyta tvarka turi būti skelbiama arba kitokiu būdu viešai prieinama visuomenei, nėra laikoma konfidencialia informacija. Konfidencialią informaciją sudaro, visų pirma, komercinė (gamybinė) paslaptis ir konfidencialieji pasiūlymų aspektai. Informacija, kurią viešai skelbti įpareigoja Lietuvos Respublikos įstatymai, negali būti tiekėjo nurodoma kaip konfidenciali, todėl, tiekėjui nurodžius tokią informaciją kaip konfidencialią, perkančioji organizacija turi teisę ją skelbti. Jei tiekėjas nenurodo konfidencialios informacijos, laikoma, kad konfidencialios informacijos tiekėjo pasiūlyme nėra. Vadovaujantis Informacijos viešinimo Centrinėje viešųjų pirkimų informacinėje sistemoje tvarkos aprašu, patvirtintu Viešųjų pirkimų tarnybos direktoriaus 2017 m. birželio 19 d. įsakymu Nr. 1S-91 „Dėl Informacijos viešinimo Centrinėje viešųjų pirkimų informacinėje sistemoje tvarkos aprašo patvirtinimo“, perkančioji organizacija laimėjusio dalyvio pasiūlymą, išskyrus informaciją, kurią tiekėjas nurodė kaip konfidencialią, paskelbs CVP IS."]
[]
[]
["Tiekėjo arba jo įgalioto asmens pareigų pavadinimas:"]
[]
["Pasirašančio asmens vardas ir pavardė:"]
[]
[]
[]
[]
[]
[]
[]
[]
[]
[]
[]
[]
[]
[]
[]
[]
[]
[]
[]
[]
[]
[]
[]
[]
[]
[]
[]
[]
[]
[]
[]
[]
[]
[]
[]
[]
[]
[]
[]
[]
[]
[]
[]
[]
[]
[]
["5450-1 2021-12-26 18:03:18"]